Workbook

Sheet Лист1
B2: ПРИМЕРНОЕ ДВУХНЕДЕЛЬНОЕ МЕНЮ ДЛЯ ОБУЧАЮЩИХСЯ В ОБЩЕОБРАЗОВАТЕЛЬНЫХ УЧРЕЖДЕНИЯХ С 1-4 КЛАССЫ
R3: (СЕНТЯБРЬ, ОКТЯБРЬ)
A4: № рецептуры | B4: Наименование блюд | G4: Выход | H4: Белки, г | I4: Жиры, г | J4: Углеводы, г | K4: Калорийность, ккал | M4: Витамин B1, мг | N4: Витамин С, мг | O4: Витамин А, мг | P4: Витамин Е, мг | R4: Ca, мг | S4: P, мг | T4: Mg, мг | U4: Fe, мг
B5: 1-ая неделя
B6: 1 день
A7: № 338 Сбор.рец. На прод-ию для обуч. Во всех образ.учреж-Дели 2015 | B7: ПЛОДЫ И ЯГОДЫ СВЕЖИЕ (ЯБЛОКИ) | G7: 100 | H7: 0.400 | I7: 0.400 | J7: 7.350 | K7: 47 | M7: 0.030 | N7: 10.000 | O7: - | P7: 0.200 | R7: 16.000 | S7: 11.000 | T7: 9.000 | U7: 2.200
A8: № 45 Сбор.рец. На прод-ию для обуч. Во всех образ.учреж-Дели 2015 | B8: САЛАТ ИЗ БЕЛОКОЧАННОЙ КАПУСТЫ (капуста,морковь,сахар,м/раст) | G8: 60 | H8: 0.931 | I8: 3.051 | J8: 5.645 | K8: 54 | M8: 0.018 | N8: 21.603 | O8: - | P8: 1.391 | R8: 25.537 | S8: 18.260 | T8: 9.920 | U8: 0.344
A9: ТТК | B9: КОТЛЕТЫ "ПОЖАРСКИЕ" , п/ф | G9: 80 | H9: 8.800 | I9: 7.700 | J9: 8.836 | K9: 168 | M9: 0.053 | N9: 1.200 | P9: 1.254 | R9: 14.252 | S9: 109.083 | T9: 14.642 | U9: 1.606
A10: № 508/3 сборник 2004 | B10: КАША ГРЕЧНЕВАЯ РАССЫПЧ.С МАСЛОМ | G10: 150/5 | H10: 6.662 | I10: 9.024 | J10: 33.000 | K10: 170 | M10: 0.292 | O10: 41.000 | P10: 0.518 | R10: 27.352 | S10: 180.553 | T10: 104.550 | U10: 3.501
A11: № 377 Сбор.рец. На прод-ию для обуч. Во всех образ.учреж-Дели 2015 | B11: ЧАЙ ЧЕРНЫЙ С САХАРОМ, ЛИМОНОМ | G11: 200/15/7 | H11: 0.084 | I11: 0.012 | J11: 9.870 | K11: 62 | M11: 0.003 | P11: 0.014 | R11: 3.250 | S11: 1.540 | T11: 0.840 | U11: 0.087
B12: ХЛЕБ БЕЛЫЙ | G12: 30 | H12: 2.280 | I12: 0.240 | J12: 14.760 | K12: 71 | M12: 0.033 | N12: - | O12: - | P12: 0.330 | R12: 6.000 | S12: 19.500 | T12: 4.200 | U12: 0.330
B13: ХЛЕБ СЕЛЬСКИЙ | G13: 20 | H13: 1.000 | I13: 0.200 | J13: 9.000 | K13: 44 | M13: 0.014 | N13: - | O13: - | P13: 0.108 | R13: 2.760 | S13: 12.720 | T13: 3.000 | U13: 0.372
B14: Итого: | H14: =SUM(H7:H13) -> 20.157 | I14: =SUM(I7:I13) -> 20.627 | J14: =SUM(J7:J13) -> 88.461 | K14: =SUM(K7:L13) -> 616 | M14: =SUM(M7:M13) -> 0.443 | N14: =SUM(N7:N13) -> 32.803 | P14: =SUM(P7:Q13) -> 3.815 | R14: =SUM(R7:R13) -> 95.151 | S14: =SUM(S7:S13) -> 352.656 | T14: =SUM(T7:T13) -> 146.152 | U14: =SUM(U7:U13) -> 8.44
B15: 2 день
A16: № 71 Сбор.рец. На прод-ию для обуч. Во всех образ.учреж-Дели 2015 | B16: ОВОЩИ НАТУРАЛЬНЫЕ СВЕЖИЕ (ОГУРЦЫ) | G16: 80 | H16: 1.300 | I16: 0.080 | J16: 1.520 | K16: 7 | M16: 0.018 | N16: 4.200 | O16: - | P16: 0.060 | R16: 10.200 | S16: 18.000 | T16: 8.400 | U16: 0.300
A17: ТТК | B17: ЖАРКОЕ ИЗ КУРИНЫХ ГРУДОК | G17: 50/150 | H17: 12.000 | I17: 16.120 | J17: 29.800 | K17: 295 | M17: 0.222 | N17: 27.825 | O17: 28.500 | P17: 2.174 | R17: 35.535 | S17: 197.840 | T17: 47.778 | U17: 2.260
A18: № 382 Сбор.рец. На прод-ию для обуч. Во всех образ.учреж-Дели 2015 | B18: КАКАО С МОЛОКОМ | G18: 200 | H18: 3.972 | I18: 2.100 | J18: 25.168 | K18: 145 | M18: 0.044 | N18: 1.300 | O18: 20.000 | P18: 0.012 | R18: 125.720 | S18: 116.200 | T18: 31.000 | U18: 1.040
B19: ХЛЕБ БЕЛЫЙ | G19: 30 | H19: 2.280 | I19: 0.240 | J19: 14.760 | K19: 71 | M19: 0.033 | N19: - | O19: - | P19: 0.330 | R19: 6.000 | S19: 19.500 | T19: 4.200 | U19: 0.330
B20: ХЛЕБ СЕЛЬСКИЙ | G20: 20 | H20: 1.000 | I20: 0.200 | J20: 9.000 | K20: 44 | M20: 0.014 | N20: - | O20: - | P20: 0.108 | R20: 2.760 | S20: 12.720 | T20: 3.000 | U20: 0.372
B21: Итого: | H21: =SUM(H16:H20) -> 20.552 | I21: =SUM(I16:I20) -> 18.740 | J21: =SUM(J16:J20) -> 80.248 | K21: 562 | M21: 0.331 | N21: 33.325 | O21: 48.5 | P21: 2.684 | R21: 180.215 | S21: 364.26 | T21: 94.378 | U21: 4.302
B22: 3 день
A23: ТТК | B23: САЛАТ ИЗ МОРКОВИ | G23: 80 | H23: 0.688 | I23: 4.176 | J23: 5.930 | K23: 65 | M23: 0.029 | N23: 2.430 | O23: - | P23: 2.834 | R23: 13.302 | S23: 26.850 | T23: 18.468 | U23: 0.358
A24: № 260 Сбор.рец. На прод-ию для обуч. Во всех образ.учреж-Дели 2015 | B24: ГУЛЯШ ИЗ ГОВЯДИНЫ | G24: 50/50 | H24: 9.750 | I24: 11.500 | J24: 7.985 | K24: 156 | M24: 0.061 | N24: 2.440 | O24: - | P24: 2.598 | R24: 14.890 | S24: 159.066 | T24: 20.920 | U24: 2.340
A25: № 202 Сбор.рец. На прод-ию для обуч. Во всех образ.учреж-Дели 2015 | B25: МАКАРОННЫЕ ИЗДЕЛИЯ ОТВАРНЫЕ | G25: 150 | H25: 5.100 | I25: 4.468 | J25: 28.500 | K25: 187 | M25: 0.087 | N25: - | O25: 21.000 | P25: 0.816 | R25: 16.457 | S25: 47.009 | T25: 8.479 | U25: 0.869
A26: № 377 Сбор.рец. На прод-ию для обуч. Во всех образ.учреж-Дели 2015 | B26: ЧАЙ ЧЕРНЫЙ С САХАРОМ С КУРАГОЙ | G26: 200/15 | H26: 0.521 | I26: 0.005 | J26: 21.725 | K26: 88 | M26: - | O26: - | P26: - | R26: 0.450 | S26: - | T26: - | U26: 0.045
B27: ХЛЕБ БЕЛЫЙ | G27: 30 | H27: 2.280 | I27: 0.240 | J27: 14.760 | K27: 71 | M27: 0.033 | N27: - | O27: - | P27: 0.330 | R27: 6.000 | S27: 19.500 | T27: 4.200 | U27: 0.330
B28: ХЛЕБ СЕЛЬСКИЙ | G28: 20 | H28: 1.000 | I28: 0.200 | J28: 9.000 | K28: 44 | M28: 0.014 | N28: - | O28: - | P28: 0.108 | R28: 2.760 | S28: 12.720 | T28: 3.000 | U28: 0.372
B29: Итого: | H29: =SUM(H23:H28) -> 19.339 | I29: =SUM(I23:I28) -> 20.589 | J29: =SUM(J23:J28) -> 87.900 | K29: =SUM(K23:L28) -> 611 | M29: 0.224 | N29: =SUM(N23:N28) -> 4.87 | O29: 21 | P29: 6.686 | R29: 53.859 | S29: 265.145 | T29: 55.067 | U29: 4.314
B30: 4 день
A31: № 20 Сбор.рец. На прод-ию для обуч. Во всех образ.учреж-Дели 2015 | B31: САЛАТ ИЗ СВЕЖИХ ОГУРЦОВ с маслом | G31: 60 | H31: 0.399 | I31: 3.653 | J31: 1.083 | K31: 39 | M31: 0.017 | O31: - | P31: 1.641 | R31: 9.690 | S31: 17.172 | T31: 7.980 | U31: 0.285
A32: ТТК | B32: БИТОЧКИ РЫБНЫЕ , п/ф | G32: 80 | H32: 9.800 | I32: 5.400 | J32: 3.682 | K32: 104 | M32: 0.017 | N32: 5.000 | O32: 25.000 | P32: 0.946 | R32: 8.242 | S32: 21.297 | T32: 1.124 | U32: 0.303
A33: № 312 Сбор.рец. На прод-ию для обуч. Во всех образ.учреж-Дели 2015 | B33: ПЮРЕ КАРТОФЕЛЬНОЕ С МАСЛОМ | G33: 150/5 | H33: 3.090 | I33: 8.282 | J33: 22.067 | K33: 179 | M33: 0.164 | N33: 5.000 | O33: 45.500 | P33: 0.231 | R33: 47.808 | S33: 98.835 | T33: 32.978 | U33: 1.241
A34: № 379 Сбор.рец. На прод-ию для обуч. Во всех образ.учреж-Дели 2015 | B34: КОФЕЙНЫЙ НАПИТОК С МОЛОКОМ | G34: 200 | H34: 3.300 | I34: 1.510 | J34: 29.060 | K34: 152 | M34: 0.115 | N34: 5.000 | O34: 20.250 | P34: 0.750 | R34: 170.600 | S34: 130.000 | T34: 34.000 | U34: 1.060
B35: ХЛЕБ СЕЛЬСКИЙ | G35: 20 | H35: 1.000 | I35: 0.200 | J35: 9.000 | K35: 44 | M35: 0.014 | N35: 5 | O35: - | P35: 0.108 | R35: 2.760 | S35: 12.720 | T35: 3.000 | U35: 0.372
B36: ХЛЕБ БЕЛЫЙ | G36: 30 | H36: 2.280 | I36: 0.240 | J36: 14.760 | K36: 71 | M36: 0.033 | N36: 5 | O36: - | P36: 0.330 | R36: 6.000 | S36: 19.500 | T36: 4.200 | U36: 0.330
B37: Итого: | H37: =SUM(H31:H36) -> 19.869 | I37: =SUM(I31:I36) -> 19.285 | J37: 79.652 | K37: =SUM(K31:L36) -> 589 | M37: 0.36 | N37: =SUM(N31:N36) -> 25.000 | O37: 90.75 | P37: 4.006 | R37: =SUM(R31:R36) -> 245.100 | S37: 299.524 | T37: 83.282 | U37: 3.591
B38: 5 день
A39: № 71 Сбор.рец. На прод-ию для обуч. Во всех образ.учреж-Дели 2015 | B39: ОВОЩИ НАТУРАЛЬНЫЕ СВЕЖИЕ (ПОМИДОРЫ) | G39: 60 | H39: 0.660 | I39: 0.120 | J39: 2.280 | K39: 14 | M39: 0.036 | N39: 15.000 | O39: - | P39: 0.420 | R39: 8.400 | S39: 15.600 | T39: 12.000 | U39: 0.540
A40: № 268 Сбор.рец. На прод-ию для обуч. Во всех образ.учреж-Дели 2015 | B40: ПЛОВ С ГОВЯДИНОЙ | G40: 50/150 | H40: 15.900 | I40: 18.900 | J40: 40.095 | K40: 422 | M40: 0.106 | N40: 3.510 | O40: - | P40: 3.931 | R40: 22.131 | S40: 240.284 | T40: 51.154 | U40: 2.932
A41: № 377 Сбор.рец. На прод-ию для обуч. Во всех образ.учреж-Дели 2015 | B41: ЧАЙ ЧЕРНЫЙ С САХАРОМ, ЛИМОНОМ | G41: 200/15/7 | H41: 0.084 | I41: 0.012 | J41: 15.185 | K41: 62 | M41: 0.003 | N41: 2.800 | O41: - | P41: 0.014 | R41: 3.250 | S41: 1.540 | T41: 0.840 | U41: 0.087
B42: ХЛЕБ СЕЛЬСКИЙ | G42: 20 | H42: 1.000 | I42: 0.200 | J42: 9.000 | K42: 44 | M42: 0.014 | N42: - | O42: - | P42: 0.108 | R42: 2.760 | S42: 12.720 | T42: 3.000 | U42: 0.372
B43: ХЛЕБ БЕЛЫЙ | G43: 30 | H43: 2.280 | I43: 0.240 | J43: 14.760 | K43: 71 | M43: 0.033 | N43: - | O43: - | P43: 0.330 | R43: 6.000 | S43: 19.500 | T43: 4.200 | U43: 0.330
B44: Итого: | H44: =SUM(H39:H43) -> 19.924 | I44: =SUM(I39:I43) -> 19.472 | J44: 81.32 | K44: 613 | M44: 0.192 | N44: 21.31 | O44: - | P44: 4.803 | R44: 42.541 | S44: 289.644 | T44: 71.194 | U44: 4.261
B45: 6 день
A46: № 338 Сбор.рец. На прод-ию для обуч. Во всех образ.учреж-Дели 2015 | B46: ПЛОДЫ И ЯГОДЫ СВЕЖИЕ (ЯБЛОКИ) | G46: 100 | H46: 0.400 | I46: 0.400 | J46: 7.350 | K46: 47 | M46: 0.030 | N46: 10.000 | O46: - | P46: 0.200 | R46: 16.000 | S46: 11.000 | T46: 9.000 | U46: 2.200
A47: № 23 Сбор.рец. На прод-ию для обуч. Во всех образ.учреж-Дели 2015 | B47: САЛАТ ИЗ СВЕЖИХ ПОМИДОРОВ (без лука) | G47: 60 | H47: 0.627 | I47: 3.710 | J47: 2.166 | K47: 46 | M47: 0.034 | N47: 14.250 | O47: - | P47: 1.983 | R47: 7.980 | S47: 14.892 | T47: 11.400 | U47: 0.513
A48: ТТК | B48: ПЕЛЬМЕНИ "ДЛЯ УМНИКОВ И УМНИЦ" ОТВАРНЫЕ С МАСЛОМ , п/ф | G48: 190/5 | H48: 11.940 | I48: 13.375 | J48: 27.340 | K48: 279 | M48: 0.168 | N48: 2.629 | O48: 34.043 | P48: 1.354 | R48: 47.058 | S48: 212.108 | T48: 29.119 | U48: 2.536
A49: № 282 Сбор.рец. На прод-ию для обуч. Во всех образ.учреж-Дели 2015 | B49: КАКАО С МОЛОКОМ | G49: 200 | H49: 3.600 | I49: 2.100 | J49: 25.168 | K49: 125 | M49: 0.044 | N49: 1.300 | O49: 20.000 | P49: 0.012 | R49: 125.720 | S49: 116.200 | T49: 31.000 | U49: 1.040
B50: ХЛЕБ СЕЛЬСКИЙ | G50: 20 | H50: 1.000 | I50: 0.200 | J50: 9.000 | K50: 44 | M50: 0.014 | N50: - | O50: - | P50: 0.108 | R50: 2.760 | S50: 12.720 | T50: 3.000 | U50: 0.372
B51: ХЛЕБ БЕЛЫЙ | G51: 30 | H51: 2.280 | I51: 0.240 | J51: 14.760 | K51: 71 | M51: 0.033 | N51: - | O51: - | P51: 0.330 | R51: 6.000 | S51: 19.500 | T51: 4.200 | U51: 0.330
B52: Итого: | H52: =SUM(H46:H51) -> 19.847 | I52: =SUM(I46:I51) -> 20.0 | J52: =SUM(J46:J51) -> 85.784 | K52: =SUM(K46:L51) -> 612 | M52: 0.324 | N52: 28.179 | O52: 74.043 | P52: 4.037 | R52: 206.718 | S52: 387.92 | T52: 87.719 | U52: 7.001

Sheet Лист2

Sheet Лист3
